bitfinex/quotes_SOLUSD_20250904
["timestamp","ask_amount","ask_price","bid_price","bid_amount"]
[1756968481232,3.22557026,206.91,206.9,0.03]
[1756968481432,5.41278561,206.92,206.9,0.03]
[1756968481643,3.80557026,206.91,206.9,0.03]
[1756968483043,8.63858944,206.91,206.9,0.03]
[1756968483355,31.41301918,206.91,206.9,0.03]
[1756968483525,72.39858944,206.91,206.9,0.03]
[1756968483732,34.63858944,206.91,206.9,0.03]
[1756968483928,72.39858944,206.91,206.9,0.03]
[1756968484139,34.63858944,206.91,206.9,0.03]
[1756968484340,72.39858944,206.91,206.9,0.03]
[1756968486426,74.33624536,206.91,206.9,0.03]
[1756968486932,87.2385264,206.91,206.9,0.03]
[1756968487332,74.33624536,206.91,206.9,0.03]
[1756968488155,87.2385264,206.91,206.9,0.03]
[1756968488444,90.83176132,206.91,206.9,0.03]
[1756968488957,91.11608446,206.91,206.9,0.03]
[1756968490031,36.94391002,206.91,206.9,0.03]
[1756968490232,77.88948028,206.91,206.9,0.03]
[1756968490641,90.79176132,206.91,206.9,0.03]
[1756968491227,91.07608446,206.91,206.9,0.03]
[1756968495067,91.09432599,206.91,206.9,0.03]
[1756968495260,53.37432599,206.91,206.9,0.03]
[1756968495575,85.07921995,206.91,206.9,0.03]
[1756968496839,84.79489681,206.91,206.9,0.03]
[1756968498634,81.18342036,206.91,206.9,0.03]
[1756968500262,81.4677435,206.91,206.9,0.03]
[1756968505468,80.8877435,206.91,206.9,0.03]
[1756968505770,81.4677435,206.91,206.9,0.03]
[1756968506165,80.8877435,206.91,206.9,0.03]
[1756968507563,81.4677435,206.91,206.9,0.03]
[1756968509464,80.8877435,206.91,206.9,0.03]
[1756968512268,80.8877435,206.91,206.9,0.7]
[1756968512652,80.8877435,206.91,206.9,0.03]
[1756968512971,81.4677435,206.91,206.9,0.03]
[1756968513356,80.8877435,206.91,206.9,0.03]
[1756968514153,88.26960612,206.91,206.9,0.03]
[1756968514363,88.84960612,206.91,206.9,0.03]
[1756968514561,88.26960612,206.91,206.9,0.03]
[1756968519379,88.26960612,206.91,206.9,0.7]
[1756968519380,45.20891035,206.91,206.9,0.7]
[1756968519571,82.74891035,206.91,206.9,0.7]
[1756968519771,45.20891035,206.91,206.9,0.7]
[1756968519975,75.36704773,206.91,206.9,0.7]
[1756968520174,70.3106751,206.91,206.9,0.7]
[1756968520375,75.36704773,206.91,206.9,0.7]
[1756968520581,49.36704773,206.91,206.9,0.7]
[1756968521190,47.42939181,206.91,206.9,0.7]
[1756968522462,26.0,206.91,206.9,0.7]
[1756968522662,63.52,206.91,206.9,0.7]
[1756968523067,37.52,206.91,206.9,0.7]
[1756968523683,31.05637263,206.94,206.9,0.7]
[1756968523990,37.54,206.94,206.91,5.05637263]
[1756968524187,37.54,206.94,206.92,5.77637263]
[1756968524490,37.54,206.95,206.93,0.72]
[1756968525871,31.05637263,206.98,206.93,0.72]
[1756968526071,37.54,206.97,206.93,5.77637263]
[1756968526286,37.54,206.97,206.95,5.05637263]
[1756968526474,4.8306845,207.01,206.96,0.72]
[1756968526667,68.59637263,207.0,206.96,0.72]
[1756968526970,5.05637263,206.99,206.96,0.72]
[1756968527171,42.57637263,206.98,206.96,0.72]
[1756968527367,26.0,206.95,206.93,0.72]
[1756968527709,42.57637263,206.94,206.9,0.03]
[1756968528069,42.35242849,206.94,206.9,0.03]
[1756968528373,5.05637263,206.92,206.91,0.72]
[1756968528597,42.59637263,206.92,206.91,0.72]
[1756968529271,42.59637263,206.92,206.9,0.03]
[1756968529607,5.05637263,206.91,206.9,0.03]
[1756968530108,9.88939181,206.91,206.9,0.75]
[1756968531808,4.83301918,206.91,206.9,0.75]
[1756968532102,9.88939181,206.91,206.9,0.75]
[1756968532274,9.88939181,206.91,206.9,0.03]
[1756968533484,4.83301918,206.91,206.9,0.75]
[1756968533697,9.88939181,206.91,206.9,0.75]
[1756968534403,9.88939181,206.91,206.9,0.03]
[1756968534595,10.46939181,206.91,206.9,0.03]
[1756968534996,12.4071416,206.91,206.9,0.03]
[1756968535883,7.35076897,206.91,206.9,0.03]
[1756968536087,11.8271416,206.91,206.9,0.03]
[1756968538608,6.77076897,206.91,206.9,0.03]
[1756968538987,11.8271416,206.91,206.9,0.03]
[1756968539188,17.74783737,206.91,206.9,0.03]
[1756968539503,24.39158887,206.91,206.9,0.03]
[1756968539693,26.0,206.88,206.86,0.03]
[1756968539895,42.57637263,206.87,206.86,0.03]
[1756968540302,44.51449798,206.87,206.86,0.03]
[1756968541188,49.34845167,206.87,206.86,0.03]
[1756968544300,50.21277481,206.87,206.86,0.03]
[1756968544495,50.21277481,206.87,206.85,1e-08]
[1756968544695,5.05637263,206.86,206.85,1e-08]
[1756968545100,5.63637263,206.86,206.85,1e-08]
[1756968545296,10.47056,206.86,206.85,1e-08]
[1756968545903,12.40887318,206.86,206.85,1e-08]
[1756968547131,14.28057519,206.86,206.85,1e-08]
[1756968547331,19.33694782,206.86,206.85,1e-08]
[1756968547833,150.83694782,206.86,206.85,1e-08]
[1756968549593,145.20057519,206.86,206.85,1e-08]
[1756968549835,143.32887318,206.86,206.85,0.72000001]
[1756968550006,180.84887318,206.86,206.85,0.72000001]
[1756968552531,180.84887318,206.86,206.85,1e-08]
[1756968554443,143.32887318,206.86,206.85,1e-08]
[1756968554637,180.84887318,206.86,206.85,0.67000001]
[1756968556231,180.84887318,206.86,206.85,1e-08]
[1756968556619,180.84887318,206.86,206.85,0.67000001]
[1756968556846,180.82887318,206.86,206.85,0.67000001]
[1756968557559,179.00915104,206.86,206.85,1e-08]
[1756968558114,179.00915104,206.86,206.85,0.67000001]
[1756968559033,179.00915104,206.86,206.85,1e-08]
[1756968559229,179.00915104,206.86,206.85,0.67000001]
[1756968560031,175.77250055,206.86,206.85,0.67000001]
[1756968560231,179.00915104,206.86,206.85,0.67000001]
[1756968560549,179.00915104,206.86,206.85,1e-08]
[1756968561860,1.93831318,206.86,206.85,0.67000001]
[1756968562029,37.52,206.87,206.85,0.67000001]
[1756968565270,0.06,206.87,206.85,0.67000001]
[1756968568291,0.06,206.87,206.85,1e-08]
[1756968568590,40.67665049,206.86,206.85,1e-08]
[1756968568789,42.61440028,206.86,206.85,1e-08]
[1756968569558,44.21193716,206.86,206.85,0.67000001]
[1756968569779,37.44,206.86,206.85,0.67000001]
[1756968569977,42.27418737,206.86,206.85,0.67000001]
[1756968572965,0.06,206.87,206.85,0.67000001]
[1756968573280,4.89405862,206.87,206.85,1e-08]
[1756968573477,8.13070911,206.87,206.85,0.67000001]
[1756968573679,37.44,206.86,206.85,0.67000001]
[1756968574473,44.21193716,206.86,206.85,0.67000001]
[1756968574678,42.27418737,206.86,206.85,0.67000001]
[1756968576794,37.44,206.86,206.85,0.67000001]
[1756968577401,42.27418737,206.86,206.85,0.67000001]
[1756968579781,37.44,206.86,206.85,0.67000001]
[1756968580095,6.83173666,206.87,206.85,0.67000001]
[1756968580318,44.25173666,206.87,206.85,0.67000001]
[1756968580516,44.25173666,206.87,206.86,0.67]
[1756968580675,39.41774979,206.87,206.86,0.67]
[1756968581197,37.48,206.87,206.86,0.67]
[1756968581496,40.71665049,206.87,206.85,1e-08]
[1756968581700,40.71665049,206.87,206.85,0.67000001]
[1756968582085,45.550627,206.87,206.85,0.67000001]
[1756968582492,42.31397651,206.87,206.85,0.67000001]
[1756968582875,37.46,206.87,206.85,0.67000001]
[1756968583080,37.46,206.87,206.85,0.71000001]
[1756968583486,45.53071789,206.87,206.85,0.71000001]
[1756968583681,42.2940674,206.87,206.85,1e-08]
[1756968584076,45.53071789,206.87,206.85,1e-08]
[1756968584276,6.77193716,206.86,206.85,1e-08]
[1756968586111,10.58858765,206.86,206.85,1e-08]
[1756968588510,10.00858765,206.86,206.85,1e-08]
[1756968589114,10.00858765,206.86,206.85,0.71000001]
[1756968589115,6.77193716,206.86,206.85,0.71000001]
[1756968589299,39.33774979,206.86,206.85,0.71000001]
[1756968590117,37.4,206.86,206.85,0.71000001]
[1756968590996,37.46,206.87,206.85,0.71000001]
[1756968592301,40.69665049,206.87,206.85,1e-08]
[1756968592608,37.46,206.87,206.85,0.71000001]
[1756968592904,1.93774979,206.86,206.85,0.71000001]
[1756968593687,39.33774979,206.86,206.85,0.71000001]
[1756968593905,1.93774979,206.86,206.85,0.71000001]
[1756968594099,39.33774979,206.86,206.85,1e-08]
[1756968594608,44.17193716,206.86,206.85,1e-08]
[1756968599308,39.33774979,206.86,206.85,0.71000001]
[1756968599808,37.4,206.86,206.85,1e-08]
[1756968600486,37.4,206.86,206.85,0.71000001]
[1756968600687,37.4,206.86,206.85,1e-08]
[1756968600905,39.33774979,206.86,206.85,1e-08]
[1756968601094,39.33774979,206.86,206.85,0.71000001]
[1756968602109,39.29774979,206.86,206.85,0.71000001]
[1756968602289,39.27774979,206.86,206.85,0.71000001]
[1756968602696,37.4,206.86,206.85,0.71000001]
[1756968603505,3.32665049,206.86,206.85,0.71000001]
[1756968603817,0.06,206.86,206.85,0.71000001]
[1756968603992,1.99756206,206.86,206.85,0.71000001]
[1756968606313,6.83174943,206.86,206.85,1e-08]
[1756968607413,6.83174943,206.86,206.85,0.71000001]
[1756968608020,1.99756206,206.86,206.85,0.71000001]
[1756968608797,0.06,206.86,206.85,0.71000001]
[1756968609711,0.06,206.86,206.85,17.54224451]
[1756968609894,0.06,206.86,206.85,14.30559402]
[1756968610096,0.06,206.86,206.85,17.54224451]
[1756968610402,0.06,206.86,206.85,0.71000001]
[1756968610810,0.06,206.86,206.85,1e-08]
[1756968611018,3.29665049,206.86,206.85,1e-08]
[1756968611320,0.06,206.86,206.85,0.71000001]
[1756968611826,0.06,206.86,206.85,1e-08]
[1756968612118,0.06,206.86,206.85,0.68000001]
[1756968613307,0.06,206.86,206.85,1e-08]
[1756968619611,0.06,206.86,206.85,0.68000001]
[1756968620901,0.06,206.86,206.85,5.73529821]
[1756968621923,0.06,206.86,206.85,0.68000001]
[1756968623415,0.06,206.86,206.85,1e-08]
[1756968623924,0.06,206.86,206.85,0.68000001]
[1756968624909,0.06,206.86,206.85,19.33089222]
[1756968625504,0.06,206.86,206.85,19.61521536]
[1756968625828,0.06,206.86,206.85,24.44963643]
[1756968627633,0.06,206.87,206.86,13.87991715]
[1756968627929,0.06,206.89,206.88,49.76893538]
[1756968628128,0.06,206.89,206.88,87.14893538]
[1756968628328,0.06,206.89,206.88,87.82893538]
[1756968628537,0.06,206.89,206.88,52.38537186]
[1756968628835,0.06,206.89,206.88,89.80537186]
[1756968629937,0.06,206.89,206.88,89.78537186]
[1756968630322,0.06,206.89,206.88,52.38537186]
[1756968630528,0.06,206.89,206.88,89.78537186]
[1756968632022,0.06,206.89,206.88,52.38537186]
[1756968632226,0.06,206.89,206.88,89.78537186]
[1756968632438,0.06,206.89,206.88,52.38537186]
[1756968632739,0.06,206.89,206.88,89.76537186]
[1756968634323,0.06,206.89,206.88,84.71007366]
[1756968634513,0.06,206.89,206.88,89.76537186]
[1756968636214,0.06,206.9,206.89,13.87991715]
[1756968636409,0.06,206.9,206.89,24.67051355]
[1756968636623,0.06,206.9,206.89,19.61521535]
[1756968636829,0.06,206.9,206.89,26.38513822]
[1756968638335,0.06,206.9,206.89,63.74513822]
[1756968639232,0.06,206.9,206.89,68.80043642]
[1756968639439,1e-08,206.9,206.89,68.80043642]
[1756968640714,0.06,206.94,206.91,26.0]
[1756968640920,1e-08,206.92,206.91,87.33051355]
[1756968641123,1e-08,206.92,206.91,50.44823453]
[1756968641415,1e-08,206.92,206.91,87.80823453]
[1756968641626,1e-08,206.92,206.91,50.44823453]
[1756968641937,1e-08,206.92,206.91,87.82823453]
[1756968642235,1e-08,206.92,206.91,23.76823453]
[1756968642535,1e-08,206.92,206.91,60.86391139]
[1756968642734,1e-08,206.92,206.91,61.14823453]
[1756968643322,1e-08,206.92,206.91,61.82823453]
[1756968644514,1e-08,206.92,206.91,66.88353273]
[1756968644709,1e-08,206.92,206.91,61.82823453]
[1756968646717,1e-08,206.92,206.91,26.38467101]
[1756968646936,1e-08,206.92,206.91,25.70467101]
[1756968647135,1e-08,206.92,206.91,20.87165183]
[1756968647437,1e-08,206.92,206.91,56.31521535]
[1756968647737,1e-08,206.92,206.91,18.93521535]
[1756968647937,1e-08,206.92,206.91,56.31521535]
[1756968649821,1e-08,206.92,206.91,61.82823453]
[1756968650020,1e-08,206.92,206.91,63.76476475]
[1756968655740,1e-08,206.92,206.91,61.14823453]
[1756968656718,1e-08,206.92,206.91,61.82823453]
[1756968656921,1e-08,206.92,206.91,63.76476475]
[1756968657336,1e-08,206.92,206.91,61.82823453]
[1756968657658,1e-08,206.92,206.91,61.85823453]
[1756968657831,0.03449979,206.94,206.92,13.87991715]
[1756968658161,0.03449979,206.94,206.93,42.65962134]
[1756968658324,0.03449979,206.94,206.93,56.93521535]
[1756968658529,0.03449979,206.94,206.93,61.76616644]
[1756968658938,0.03449979,206.94,206.93,61.08616644]
[1756968659137,0.03449979,206.94,206.93,56.93521535]
[1756968659537,0.03449979,206.94,206.93,13.59559401]
[1756968659538,0.61449979,206.94,206.93,13.59559401]
[1756968659738,0.61449979,206.94,206.93,50.93559401]
[1756968659949,0.61449979,206.94,206.93,13.59559401]
[1756968661838,0.61449979,206.94,206.92,13.59559401]
[1756968662041,0.58,206.93,206.92,13.59559401]
[1756968662440,0.03449979,206.94,206.92,13.59559401]
[1756968662646,0.61449979,206.94,206.92,13.59559401]
[1756968662845,0.03449979,206.94,206.92,13.59559401]
[1756968663444,0.03449979,206.94,206.91,0.03]
[1756968663445,0.58,206.93,206.91,0.03]
[1756968663833,0.58,206.92,206.91,0.03]
[1756968664646,0.03449979,206.94,206.91,0.03]
[1756968664960,0.58,206.93,206.91,0.03]
[1756968665160,0.58,206.92,206.91,0.03]
[1756968665457,0.58,206.93,206.91,0.03]
[1756968665658,0.58,206.92,206.91,0.03]
[1756968665840,4.86687597,206.94,206.91,0.03]
[1756968666163,0.58,206.93,206.91,0.03]
[1756968666839,0.03449979,206.94,206.91,0.03]
[1756968667159,0.03449979,206.94,206.91,5.7652982]
[1756968667358,0.61449979,206.94,206.91,5.0852982]
[1756968667654,0.61449979,206.94,206.91,0.03]
[1756968668357,4.86683599,206.94,206.91,0.03]
[1756968668555,5.6352982,206.93,206.91,0.03]
[1756968668759,5.0552982,206.92,206.91,0.03]
[1756968669146,5.6352982,206.92,206.91,0.03]
[1756968670442,10.46808381,206.92,206.91,0.03]
[1756968671741,47.78808381,206.92,206.91,0.03]
[1756968672266,49.72564587,206.92,206.91,0.03]
[1756968674377,12.40564587,206.92,206.91,0.03]
[1756968674558,42.17278561,206.92,206.91,0.03]
[1756968674753,42.15278561,206.92,206.91,0.03]
[1756968675142,35.8878772,206.93,206.91,0.03]
[1756968675346,68.152579,206.93,206.91,0.03]
[1756968675948,5.0552982,206.92,206.91,0.03]
[1756968679568,3.23397626,206.92,206.91,0.03]
[1756968679774,40.55397626,206.92,206.91,0.03]
[1756968680280,45.38676187,206.92,206.91,0.03]
[1756968684066,45.96676187,206.92,206.91,0.03]
[1756968686568,47.90423009,206.92,206.91,0.03]
[1756968689984,47.32423009,206.92,206.91,0.03]
[1756968691676,47.90423009,206.92,206.91,0.03]
[1756968692275,47.32423009,206.92,206.91,0.03]
[1756968694485,47.90423009,206.92,206.91,0.03]
[1756968696284,47.32423009,206.92,206.91,0.03]
[1756968701878,3.23397626,206.92,206.91,0.74]
[1756968702180,40.55397626,206.92,206.91,0.74]
[1756968702975,29.23397626,206.92,206.91,0.74]
[1756968703190,40.55397626,206.92,206.91,0.74]
[1756968703399,3.23397626,206.92,206.91,0.74]
[1756968703600,45.38676187,206.92,206.91,0.74]
[1756968705200,45.38676187,206.92,206.91,0.03]
[1756968705608,45.38676187,206.92,206.91,0.73]
[1756968705894,45.38676187,206.92,206.91,0.03]
[1756968706196,58.90266691,206.92,206.91,0.03]
[1756968706578,65.61503846,206.92,206.91,0.03]
[1756968707798,52.09913342,206.92,206.91,0.03]
[1756968708108,52.67913342,206.92,206.91,0.03]
[1756968708417,52.09913342,206.92,206.91,0.03]
[1756968709798,65.61503846,206.92,206.91,0.03]
[1756968714704,52.67913342,206.92,206.91,0.03]
[1756968715008,47.32441779,206.92,206.91,0.03]
[1756968715407,10.00441779,206.92,206.91,0.03]
[1756968715604,47.32441779,206.92,206.91,0.03]
[1756968719609,44.09044153,206.92,206.91,0.03]
[1756968719791,47.32441779,206.92,206.91,0.03]
[1756968721411,52.16832519,206.92,206.91,0.03]
[1756968724217,14.84832519,206.92,206.91,0.03]
[1756968724408,52.16832519,206.92,206.91,0.03]
[1756968725819,52.74832519,206.92,206.91,0.03]
[1756968726315,52.16832519,206.92,206.91,0.03]
[1756968726496,65.10423023,206.92,206.91,0.03]
[1756968727305,52.16832519,206.92,206.91,0.03]
[1756968727900,65.10423023,206.92,206.91,0.03]
[1756968731415,52.16832519,206.92,206.91,0.03]
[1756968733101,52.16832519,206.92,206.91,0.74]
[1756968733498,11.61434893,206.92,206.91,0.74]
[1756968733702,52.16832519,206.92,206.91,0.74]
[1756968735323,52.16832519,206.92,206.91,0.03]
[1756968736627,48.93434893,206.92,206.91,0.74]
[1756968736832,52.16832519,206.92,206.91,0.74]
[1756968737040,52.16832519,206.92,206.91,0.03]
[1756968737539,48.93434893,206.92,206.91,0.03]
[1756968737714,52.16832519,206.92,206.91,0.03]
[1756968739930,65.10423023,206.92,206.91,0.03]
[1756968741329,65.68423023,206.92,206.88,0.03]
[1756968741630,31.05731368,206.89,206.88,0.03]
[1756968741933,68.37731368,206.89,206.88,0.03]
[1756968742315,73.21080007,206.89,206.88,0.03]
[1756968742830,75.14873762,206.89,206.88,0.03]
[1756968747933,75.14873762,206.89,206.88,0.74]
[1756968748132,75.12873762,206.89,206.88,0.74]
[1756968748641,49.12873762,206.89,206.88,0.74]
[1756968752540,49.12873762,206.89,206.88,0.03]
[1756968753045,49.12873762,206.89,206.88,0.74]
[1756968754931,44.07142394,206.89,206.88,0.74]
[1756968755124,49.12873762,206.89,206.88,0.74]
[1756968755326,1.93793755,206.89,206.88,0.74]
[1756968755525,44.29525123,206.89,206.88,0.74]
[1756968756342,49.12873762,206.89,206.88,0.74]
[1756968756945,49.12873762,206.89,206.88,0.03]
[1756968757838,49.70873762,206.89,206.88,0.03]
[1756968759147,26.0,206.87,206.86,0.03]
[1756968759346,68.35731368,206.87,206.86,0.03]
[1756968761255,73.19126737,206.87,206.86,0.03]
[1756968761646,76.97162607,206.87,206.86,0.03]
[1756968761949,78.90975141,206.87,206.86,0.03]
[1756968762246,78.90975141,206.87,206.86,0.75]
[1756968762247,70.07207903,206.87,206.86,0.75]
[1756968762454,75.12939271,206.87,206.86,0.75]
[1756968763837,75.12939271,206.87,206.86,0.03]
[1756968769441,75.12939271,206.87,206.86,0.75]
[1756968770438,75.12939271,206.87,206.86,0.03]
[1756968773861,75.12939271,206.87,206.86,0.75]
[1756968775360,75.12939271,206.87,206.86,0.03]
[1756968778062,75.12939271,206.87,206.86,0.75]
[1756968781263,37.82939271,206.87,206.86,0.75]
[1756968781468,6.99543902,206.87,206.86,0.75]
[1756968781766,42.35731368,206.87,206.86,0.75]
[1756968781955,47.19126737,206.87,206.86,0.75]
[1756968782353,49.12892329,206.87,206.86,0.75]
[1756968782758,49.18892329,206.87,206.86,0.75]
[1756968786876,1.99765592,206.87,206.86,0.75]
[1756968787054,37.34,206.87,206.86,0.75]
[1756968788644,42.39731368,206.87,206.86,0.75]
[1756968789062,47.23126737,206.87,206.86,0.75]
[1756968790255,49.16892329,206.87,206.86,0.75]
[1756968791476,49.16892329,206.87,206.86,0.03]
[1756968794975,11.88892329,206.87,206.86,0.03]
[1756968795154,9.95126737,206.87,206.86,0.74]
[1756968795453,47.23126737,206.87,206.86,0.74]
[1756968796880,42.17395369,206.87,206.86,0.74]
[1756968797083,42.39731368,206.87,206.86,0.74]
[1756968797583,47.23126737,206.87,206.86,0.74]
[1756968797769,47.81126737,206.87,206.86,0.03]
[1756968797965,49.16901715,206.87,206.86,0.03]
[1756968798682,49.16901715,206.87,206.86,0.74]
[1756968798851,49.16901715,206.87,206.86,0.03]
[1756968801587,47.34782888,206.87,206.86,0.03]
[1756968801789,44.11170347,206.87,206.86,0.03]
[1756968802100,47.34782888,206.87,206.86,0.74]
[1756968802399,47.34782888,206.87,206.86,0.03]
[1756968802691,47.92782888,206.87,206.86,0.03]
[1756968806767,48.21215202,206.87,206.86,0.03]
[1756968808492,73.34782888,206.87,206.86,0.03]
[1756968808694,47.34782888,206.87,206.86,0.03]
[1756968811601,6.83170347,206.87,206.86,0.74]
[1756968811797,47.32782888,206.87,206.86,0.74]
[1756968813005,73.32782888,206.87,206.86,0.74]
[1756968813302,27.99774978,206.87,206.86,0.74]
[1756968813472,47.32782888,206.87,206.86,0.74]
[1756968814404,44.09170347,206.87,206.86,0.74]
[1756968814715,47.32782888,206.87,206.86,0.74]
[1756968815289,47.32782888,206.87,206.86,0.03]
[1756968816619,47.90782888,206.87,206.86,0.03]
[1756968816987,47.32782888,206.87,206.86,0.03]
[1756968817412,47.90782888,206.87,206.86,0.03]
[1756968818987,47.32782888,206.87,206.86,0.03]
[1756968819613,47.90782888,206.87,206.86,0.03]
[1756968821490,47.32782888,206.87,206.86,0.03]
[1756968822525,47.90782888,206.87,206.86,0.03]
[1756968824420,47.32782888,206.87,206.86,0.03]
[1756968824819,10.06782888,206.87,206.86,0.69]
[1756968825021,47.32782888,206.87,206.86,0.69]
[1756968831335,6.83170347,206.87,206.86,0.69]
[1756968831531,47.32782888,206.87,206.86,0.69]
[1756968839234,1.99774978,206.87,206.86,0.69]
[1756968839419,39.25774978,206.87,206.86,0.69]
[1756968839620,37.32,206.87,206.86,0.69]
[1756968839834,40.55612541,206.87,206.86,0.69]
[1756968840232,0.06,206.87,206.86,0.69]
[1756968840544,37.32,206.87,206.86,0.69]
[1756968840729,37.3,206.87,206.86,0.69]
[1756968843458,40.53612541,206.87,206.86,0.69]
[1756968843662,42.13395369,206.87,206.86,0.69]
[1756968843942,42.13395369,206.87,206.86,0.03]
[1756968844156,45.3700791,206.87,206.86,0.03]
[1756968844878,45.3700791,206.87,206.86,0.69]
[1756968845263,45.3700791,206.87,206.86,0.03]
[1756968846977,45.3700791,206.87,206.86,0.69]
[1756968847275,63.3,206.87,206.86,0.69]
[1756968847859,66.53612541,206.87,206.86,0.69]
[1756968848062,71.3700791,206.87,206.86,0.69]
[1756968849770,68.13395369,206.87,206.86,0.69]
[1756968850057,71.3700791,206.87,206.86,0.69]
[1756968850777,71.3700791,206.87,206.86,0.03]
[1756968850977,71.9500791,206.87,206.86,0.03]
[1756968851155,73.88811055,206.87,206.86,0.03]
[1756968851478,73.30811055,206.87,206.86,0.03]
[1756968856264,47.30811055,206.87,206.86,0.03]
[1756968858381,47.88811055,206.87,206.86,0.03]
[1756968859565,47.30811055,206.87,206.86,0.03]
[1756968859974,47.88811055,206.87,206.86,0.03]
[1756968861475,44.65198514,206.87,206.86,0.03]
[1756968861674,47.30811055,206.87,206.86,0.03]
[1756968863471,49.12956778,206.87,206.86,0.03]
[1756968864601,49.12956778,206.87,206.86,0.69]
[1756968867093,44.29561409,206.87,206.86,0.69]
[1756968867389,42.35758264,206.87,206.86,0.69]
[1756968868292,47.19153633,206.87,206.86,0.69]
[1756968868605,49.12938,206.87,206.86,0.69]
[1756968868889,49.12938,206.87,206.86,0.03]
[1756968872796,49.70938,206.87,206.86,0.03]
[1756968872980,44.65179736,206.87,206.86,0.03]
[1756968873180,49.70938,206.87,206.86,0.03]
[1756968874096,49.12938,206.87,206.86,0.03]
[1756968874595,6.83179736,206.87,206.86,0.69]
[1756968874806,0.06,206.9,206.86,0.69]
[1756968875016,0.06,206.9,206.87,5.05758264]
[1756968875300,0.06,206.9,206.88,5.37758264]
[1756968875484,0.06,206.9,206.89,0.32]
[1756968875691,0.06,206.9,206.89,5.37758264]
[1756968875879,0.06,206.9,206.89,23.80666304]
[1756968876078,0.06,206.9,206.89,24.09098618]
[1756968877006,0.06,206.9,206.89,19.03340354]
[1756968877208,0.06,206.9,206.89,24.09098618]
[1756968877413,0.06,206.9,206.89,19.03340354]
[1756968877614,0.06,206.9,206.89,24.09098618]
[1756968877784,0.06,206.9,206.89,19.03340354]
[1756968877987,0.06,206.9,206.89,24.09098618]
[1756968878590,0.06,206.9,206.89,19.03340354]
[1756968879000,0.06,206.9,206.89,24.09098618]
[1756968885192,0.06,206.9,206.89,26.02789149]
[1756968885509,0.06,206.9,206.89,16.13682246]
[1756968885696,0.06,206.9,206.89,21.1944051]
[1756968886216,0.06,206.9,206.89,26.02789149]
[1756968892329,0.06,206.91,206.9,13.87991715]
[1756968892506,0.06,206.91,206.9,19.25749979]
[1756968893698,0.06,206.91,206.9,24.31508243]
[1756968894418,0.06,206.91,206.9,29.1483352]
[1756968894618,0.06,206.91,206.9,107.7483352]
[1756968895019,0.06,206.92,206.9,107.7483352]
[1756968895215,1e-08,206.93,206.92,13.87991715]
[1756968895416,1e-08,206.93,206.92,135.69749979]
[1756968895619,1e-08,206.93,206.92,136.01749979]
[1756968896019,1e-08,206.95,206.94,39.87991715]
[1756968896207,1e-08,206.95,206.94,44.93749979]
[1756968896402,1e-08,206.95,206.94,24.08981833]
[1756968896734,1e-08,206.95,206.94,50.08981833]
[1756968898617,1e-08,206.95,206.94,50.66969655]
[1756968901107,1e-08,206.97,206.96,18.93749979]
[1756968901308,1e-08,206.97,206.96,77.59732197]
[1756968901530,0.06,207.02,207.0,0.28432314]
[1756968901714,0.06,207.02,207.01,57.33749979]
[1756968901913,0.06,207.02,207.01,14.19991715]
[1756968902230,0.72,207.02,207.01,57.01749979]
[1756968902611,0.72,207.02,207.01,61.84818429]
[1756968903615,0.06,207.02,207.01,61.84818429]
[1756968904421,0.06,207.02,207.01,23.76818429]
[1756968904622,0.72,207.02,207.01,61.82818429]
[1756968904828,0.72,207.02,207.01,23.76818429]
[1756968905032,0.72,207.02,207.01,43.38190578]
[1756968905435,0.72,207.02,207.01,5.34190578]